[Event "Turniej 30-lecia Liceum im. Józefa Bema"]
[Site "Warsaw, Poland"]
[Date "????.??.??"]
[Round "6.4"]
[White "Nurkiewicz, Maciej"]
[Black "Janeczko, Jakub"]
[Result "1-0"]
[TimeControl "0:10:02"]
[WhiteElo "2301"]
[BlackElo "1661"]

1. d4 {[%clk 00:10:02]} c5 {[%clk 00:10:04]} 2. d5 {[%clk 00:10:01]} {[%emt
00:00:05]} g6 {[%clk 00:10:04]} {[%emt 00:00:01]} 3. e4 {[%clk 00:09:56]}
{[%emt 00:00:06]} d6 {[%clk 00:10:05]} {[%emt 00:00:01]} 4. Nf3 {[%clk
00:09:53]} {[%emt 00:00:05]} Bg7 {[%clk 00:10:06]} 5. Bb5+ {[%clk 00:09:48]}
{[%emt 00:00:08]} Bd7 {[%clk 00:10:00]} {[%emt 00:00:08]} 6. a4 {[%clk
00:09:40]} {[%emt 00:00:10]} Nf6 {[%clk 00:09:59]} {[%emt 00:00:02]} 7. Nc3
{[%clk 00:09:38]} {[%emt 00:00:04]} O-O {[%clk 00:09:54]} {[%emt 00:00:06]} 8.
O-O {[%clk 00:09:39]} {[%emt 00:00:02]} Na6 {[%clk 00:09:55]} {[%emt 00:00:01]}
9. Re1 {[%clk 00:09:33]} {[%emt 00:00:07]} Nc7 {[%clk 00:09:56]} {[%emt
00:00:02]} 10. h3 {[%clk 00:09:07]} {[%emt 00:00:28]} a6 {[%clk 00:09:51]}
{[%emt 00:00:08]} 11. Bxd7 {[%clk 00:09:05]} {[%emt 00:00:04]} Qxd7 {[%clk
00:09:47]} {[%emt 00:00:05]} 12. a5 {[%clk 00:07:40]} {[%emt 00:01:27]} Nb5
{[%clk 00:09:29]} {[%emt 00:00:20]} 13. Na4 {[%clk 00:07:31]} {[%emt 00:00:11]}
Rad8 {[%clk 00:09:28]} {[%emt 00:00:02]} 14. c3 {[%clk 00:07:18]} {[%emt
00:00:15]} Qc7 {[%clk 00:09:19]} {[%emt 00:00:12]} 15. Nb6 {[%clk 00:07:15]}
{[%emt 00:00:04]} Nd7 {[%clk 00:09:18]} {[%emt 00:00:03]} 16. Nc4 {[%clk
00:07:16]} {[%emt 00:00:02]} b6 {[%clk 00:08:52]} {[%emt 00:00:29]} 17. axb6
{[%clk 00:06:59]} {[%emt 00:00:18]} Nxb6 {[%clk 00:08:52]} {[%emt 00:00:02]} 18.
Qb3 {[%clk 00:06:20]} {[%emt 00:00:40]} Nxc4 {[%clk 00:08:42]} {[%emt
00:00:13]} 19. Qxc4 {[%clk 00:06:21]} {[%emt 00:00:02]} Qb7 {[%clk 00:08:42]}
{[%emt 00:00:02]} 20. Bg5 {[%clk 00:06:13]} {[%emt 00:00:09]} h6 {[%clk
00:08:07]} {[%emt 00:00:37]} 21. Be3 {[%clk 00:06:13]} {[%emt 00:00:02]} Nc7
{[%clk 00:07:28]} {[%emt 00:00:42]} 22. Ra2 {[%clk 00:06:09]} {[%emt 00:00:06]}
Rb8 {[%clk 00:07:24]} {[%emt 00:00:06]} 23. Rea1 {[%clk 00:06:05]} {[%emt
00:00:06]} Qb5 {[%clk 00:07:24]} {[%emt 00:00:03]} 24. Nd2 {[%clk 00:06:04]}
{[%emt 00:00:02]} Rb7 {[%clk 00:06:52]} {[%emt 00:00:34]} 25. Qf1 {[%clk
00:05:31]} {[%emt 00:00:35]} Rfb8 {[%clk 00:06:31]} {[%emt 00:00:24]} 26. Nc4
{[%clk 00:05:27]} {[%emt 00:00:06]} Qd7 {[%clk 00:05:59]} {[%emt 00:00:34]} 27.
Qe2 {[%clk 00:05:19]} {[%emt 00:00:10]} e6 {[%clk 00:05:26]} {[%emt 00:00:36]}
28. dxe6 {[%clk 00:04:55]} {[%emt 00:00:25]} Qxe6 {[%clk 00:04:37]} {[%emt
00:00:51]} 29. Bf4 {[%clk 00:04:54]} {[%emt 00:00:02]} Rd8 {[%clk 00:03:54]}
{[%emt 00:00:46]} 30. Qd3 {[%clk 00:03:52]} {[%emt 00:01:03]} Bf8 {[%clk
00:03:29]} {[%emt 00:00:27]} 31. Rd1 {[%clk 00:03:39]} {[%emt 00:00:16]} Be7
{[%clk 00:02:42]} {[%emt 00:00:50]} 32. Na5 {[%clk 00:02:40]} {[%emt 00:01:00]}
Rb6 {[%clk 00:01:43]} {[%emt 00:01:01]} 33. Nc4 {[%clk 00:02:14]} {[%emt
00:00:29]} Rb7 {[%clk 00:01:44]} {[%emt 00:00:01]} 34. Ra5 {[%clk 00:02:04]}
{[%emt 00:00:11]} d5 {[%clk 00:01:36]} {[%emt 00:00:10]} 35. Ne3 {[%clk
00:01:12]} {[%emt 00:00:53]} dxe4 {[%clk 00:01:16]} {[%emt 00:00:23]} 36. Qc2
{[%clk 00:01:12]} {[%emt 00:00:01]} Rxd1+ {[%clk 00:01:12]} {[%emt 00:00:06]}
37. Qxd1 {[%clk 00:01:04]} {[%emt 00:00:10]} Nb5 {[%clk 00:01:01]} {[%emt
00:00:14]} 38. Qa4 {[%clk 00:00:58]} {[%emt 00:00:08]} Bd6 {[%clk 00:00:37]}
{[%emt 00:00:26]} 39. Rxa6 {[%clk 00:00:56]} {[%emt 00:00:04]} Nxc3 {[%clk
00:00:27]} {[%emt 00:00:11]} 40. bxc3 {[%clk 00:00:48]} {[%emt 00:00:11]} Rb1+
{[%clk 00:00:28]} 41. Nf1 {[%clk 00:00:49]} {[%emt 00:00:01]} e3 {[%clk
00:00:16]} {[%emt 00:00:15]} 42. fxe3 {[%clk 00:00:40]} {[%emt 00:00:11]} Qf5
{[%clk 00:00:04]} {[%emt 00:00:13]} 43. Rxd6 {[%emt 00:00:08]} 1-0

[Event "Turniej 30-lecia Liceum im. Józefa Bema"]
[Site "Warsaw, Poland"]
[Date "????.??.??"]
[Round "6.5"]
[White "Bielinski, Leszek"]
[Black "Niedbal, Piotr"]
[Result "1-0"]
[TimeControl "0:10:02"]
[WhiteElo "1854"]
[BlackElo "1856"]

1. e4 {[%clk 00:10:02]} {[%emt 00:00:01]} c5 {[%clk 00:10:03]} 2. g3 {[%clk
00:10:03]} {[%emt 00:00:01]} e5 {[%clk 00:09:56]} {[%emt 00:00:10]} 3. Nc3
{[%clk 00:10:03]} {[%emt 00:00:02]} d6 {[%clk 00:09:52]} {[%emt 00:00:05]} 4.
Bg2 {[%clk 00:10:02]} {[%emt 00:00:02]} Ne7 {[%clk 00:09:52]} {[%emt 00:00:02]}
5. d3 {[%clk 00:10:02]} {[%emt 00:00:02]} g6 {[%clk 00:09:53]} {[%emt
00:00:02]} 6. f4 {[%clk 00:10:03]} {[%emt 00:00:01]} f5 {[%clk 00:09:48]}
{[%emt 00:00:06]} 7. fxe5 {[%clk 00:09:58]} {[%emt 00:00:06]} dxe5 {[%clk
00:09:49]} {[%emt 00:00:02]} 8. Nf3 {[%clk 00:09:58]} {[%emt 00:00:02]} Bg7
{[%clk 00:09:45]} {[%emt 00:00:05]} 9. O-O {[%clk 00:09:53]} {[%emt 00:00:07]}
O-O {[%clk 00:09:41]} {[%emt 00:00:06]} 10. Be3 {[%clk 00:09:41]} {[%emt
00:00:13]} Qc7 {[%clk 00:09:24]} {[%emt 00:00:21]} 11. Qe1 {[%clk 00:07:45]}
{[%emt 00:01:57]} Nd7 {[%clk 00:09:10]} {[%emt 00:00:16]} 12. a4 {[%clk
00:07:34]} {[%emt 00:00:14]} a6 {[%clk 00:09:09]} {[%emt 00:00:03]} 13. Ng5
{[%clk 00:07:14]} {[%emt 00:00:21]} Nf6 {[%clk 00:09:01]} {[%emt 00:00:11]} 14.
a5 {[%clk 00:06:59]} {[%emt 00:00:17]} h6 {[%clk 00:08:32]} {[%emt 00:00:31]}
15. Nf3 {[%clk 00:06:50]} {[%emt 00:00:11]} f4 {[%clk 00:08:25]} {[%emt
00:00:08]} 16. Bf2 {[%clk 00:06:19]} {[%emt 00:00:33]} Ng4 {[%clk 00:08:13]}
{[%emt 00:00:15]} 17. Na4 {[%clk 00:06:12]} {[%emt 00:00:09]} Nxf2 {[%clk
00:07:56]} {[%emt 00:00:19]} 18. Qxf2 {[%clk 00:06:03]} {[%emt 00:00:10]} fxg3
{[%clk 00:07:51]} {[%emt 00:00:07]} 19. hxg3 {[%clk 00:05:55]} {[%emt
00:00:11]} c4 {[%clk 00:07:46]} {[%emt 00:00:08]} 20. Nb6 {[%clk 00:05:50]}
{[%emt 00:00:07]} Rb8 {[%clk 00:07:42]} {[%emt 00:00:06]} 21. Nxc4 {[%clk
00:05:36]} {[%emt 00:00:15]} Be6 {[%clk 00:07:17]} {[%emt 00:00:27]} 22. Qb6
{[%clk 00:05:31]} {[%emt 00:00:08]} Qxb6+ {[%clk 00:06:12]} {[%emt 00:01:07]}
23. Nxb6 {[%clk 00:05:31]} {[%emt 00:00:01]} Nc6 {[%clk 00:06:12]} {[%emt
00:00:03]} 24. c4 {[%clk 00:04:05]} {[%emt 00:01:28]} Rbd8 {[%clk 00:06:04]}
{[%emt 00:00:09]} 25. Nd5 {[%clk 00:04:06]} {[%emt 00:00:02]} Bxd5 {[%clk
00:05:33]} {[%emt 00:00:33]} 26. cxd5 {[%clk 00:04:06]} {[%emt 00:00:02]} Nb4
{[%clk 00:05:30]} {[%emt 00:00:05]} 27. Ne1 {[%clk 00:03:30]} {[%emt 00:00:39]}
h5 {[%clk 00:05:12]} {[%emt 00:00:21]} 28. Ra4 {[%clk 00:03:27]} {[%emt
00:00:04]} Rxf1+ {[%clk 00:04:27]} {[%emt 00:00:47]} 29. Bxf1 {[%clk 00:03:23]}
{[%emt 00:00:07]} Nxd5 {[%clk 00:04:27]} {[%emt 00:00:02]} 30. exd5 {[%clk
00:03:21]} {[%emt 00:00:04]} Rxd5 {[%clk 00:04:27]} {[%emt 00:00:02]} 31. Bg2
{[%clk 00:03:16]} {[%emt 00:00:06]} Rd7 {[%clk 00:04:16]} {[%emt 00:00:12]} 32.
Rb4 {[%clk 00:03:10]} {[%emt 00:00:09]} Bf8 {[%clk 00:04:03]} {[%emt 00:00:16]}
33. Rxb7 {[%clk 00:03:06]} {[%emt 00:00:06]} Rd4 {[%clk 00:03:54]} {[%emt
00:00:11]} 34. Be4 {[%clk 00:03:02]} {[%emt 00:00:05]} g5 {[%clk 00:03:48]}
{[%emt 00:00:09]} 35. Nf3 {[%clk 00:02:57]} {[%emt 00:00:06]} Ra4 {[%clk
00:03:38]} {[%emt 00:00:11]} 36. Nxg5 {[%clk 00:02:52]} {[%emt 00:00:07]} Rxa5
{[%clk 00:03:35]} {[%emt 00:00:06]} 37. Bh7+ {[%clk 00:02:49]} {[%emt
00:00:03]} Kh8 {[%clk 00:03:34]} {[%emt 00:00:04]} 38. Be4 {[%clk 00:02:18]}
{[%emt 00:00:33]} Ra4 {[%clk 00:03:03]} {[%emt 00:00:34]} 39. Bd5 {[%clk
00:02:13]} {[%emt 00:00:05]} Bg7 {[%clk 00:02:24]} {[%emt 00:00:41]} 40. Rb8+
{[%clk 00:02:14]} {[%emt 00:00:02]} Bf8 {[%clk 00:02:25]} {[%emt 00:00:02]} 41.
Rxf8+ {[%clk 00:02:14]} {[%emt 00:00:01]} Kg7 {[%clk 00:02:26]} 42. Rb8 {[%clk
00:02:02]} {[%emt 00:00:15]} Rg4 {[%clk 00:02:11]} {[%emt 00:00:17]} 43. Ne4
{[%clk 00:02:01]} {[%emt 00:00:02]} Kh6 {[%clk 00:01:46]} {[%emt 00:00:28]} 44.
Rh8+ {[%clk 00:02:01]} {[%emt 00:00:02]} Kg7 {[%clk 00:01:46]} {[%emt
00:00:02]} 45. Rg8+ {[%clk 00:02:02]} Kh6 {[%clk 00:01:47]} {[%emt 00:00:03]}
46. Rxg4 {[%clk 00:02:03]} hxg4 {[%clk 00:01:48]} {[%emt 00:00:01]} 47. b4
{[%clk 00:02:01]} {[%emt 00:00:04]} 1-0

[Event "Turniej 30-lecia Liceum im. Józefa Bema"]
[Site "Warsaw, Poland"]
[Date "????.??.??"]
[Round "6.6"]
[White "Dworakowski, Lukasz"]
[Black "Krasiewicz, Robert"]
[Result "1/2-1/2"]
[TimeControl "0:10:02"]
[WhiteElo "2185"]
[BlackElo "1948"]

1. e4 {[%emt 00:06:47]} g6 {[%emt 00:00:02]} 2. d4 {[%emt 00:00:02]} Bg7 3. Nf3
{[%emt 00:00:03]} d6 4. Bc4 {[%emt 00:00:06]} a6 {[%emt 00:00:02]} 5. O-O
{[%emt 00:00:02]} b5 {[%emt 00:00:01]} 6. Bb3 e6 {[%emt 00:00:01]} 7. Qe2
{[%emt 00:01:58]} Bb7 {[%emt 00:00:14]} 8. Bg5 {[%emt 00:00:36]} Ne7 {[%emt
00:00:03]} 9. Nbd2 {[%emt 00:00:01]} h6 {[%emt 00:00:05]} 10. Be3 {[%emt
00:00:01]} Nd7 {[%emt 00:00:21]} 11. a4 {[%emt 00:00:11]} c6 {[%emt 00:00:29]}
12. c4 {[%emt 00:00:59]} b4 {[%emt 00:00:18]} 13. c5 {[%emt 00:01:33]} dxc5
{[%emt 00:00:28]} 14. dxc5 {[%emt 00:00:39]} O-O {[%emt 00:00:32]} 15. Nc4
{[%emt 00:00:02]} a5 {[%emt 00:00:03]} 16. Rfd1 {[%emt 00:00:27]} Ba6 {[%emt
00:00:09]} 17. Rd6 {[%emt 00:00:39]} Qc7 {[%emt 00:00:40]} 18. Rad1 {[%emt
00:00:10]} Bxc4 {[%emt 00:00:27]} 19. Bxc4 {[%emt 00:00:33]} Nf6 {[%emt
00:02:23]} 20. Qd3 {[%emt 00:00:03]} Nc8 {[%emt 00:00:43]} 21. Rd8 {[%emt
00:00:01]} Kh7 {[%emt 00:00:15]} 22. Rxf8 {[%emt 00:00:27]} Bxf8 {[%emt
00:00:03]} 23. Bd4 {[%emt 00:00:39]} Nd7 {[%emt 00:00:22]} 24. Be3 {[%emt
00:00:33]} Nxc5 {[%emt 00:00:11]} 25. Bxc5 {[%emt 00:00:38]} Bxc5 {[%emt
00:00:02]} 26. Qd7 {[%emt 00:00:01]} Qxd7 {[%emt 00:00:13]} 27. Rxd7 {[%emt
00:00:01]} Ra7 {[%emt 00:00:07]} 28. Bxe6 {[%emt 00:00:06]} Kg7 {[%emt
00:00:30]} 29. e5 {[%emt 00:00:12]} Ne7 {[%emt 00:00:10]} 30. Rxa7 {[%emt
00:00:08]} Bxa7 31. Bc4 {[%emt 00:00:04]} Nf5 {[%emt 00:00:09]} 32. e6 {[%emt
00:00:10]} f6 {[%emt 00:00:08]} 33. Kf1 {[%emt 00:00:04]} Kf8 {[%emt 00:00:02]}
34. g4 {[%emt 00:00:06]} Nd4 {[%emt 00:00:04]} 35. Nxd4 {[%emt 00:00:04]} Bxd4
{[%emt 00:00:01]} 36. b3 Ke7 {[%emt 00:00:03]} 37. Ke2 {[%emt 00:00:01]} Kd6
{[%emt 00:00:14]} 38. f3 {[%emt 00:00:01]} g5 {[%emt 00:00:04]} 39. Kd3 Bc5
{[%emt 00:00:02]} 40. Ke4 Ke7 {[%emt 00:00:33]} 41. Kf5 Bd6 42. Kg6 {[%emt
00:00:02]} Bxh2 {[%emt 00:00:02]} 43. Kxh6 {[%emt 00:00:01]} Bf4 {[%emt
00:00:13]} 1/2-1/2

[Event "Turniej 30-lecia Liceum im. Józefa Bema"]
[Site "Warsaw, Poland"]
[Date "????.??.??"]
[Round "6.7"]
[White "Pichurko, Jakub"]
[Black "Praczukowski, Stanislaw"]
[Result "0-1"]
[TimeControl "0:10:02"]
[WhiteElo "1677"]
[BlackElo "2113"]

1. d4 {[%clk 00:10:02]} Nf6 {[%clk 00:10:03]} 2. Nf3 {[%clk 00:10:02]} {[%emt
00:00:04]} d5 {[%clk 00:10:04]} {[%emt 00:00:02]} 3. Bf4 {[%clk 00:10:02]}
{[%emt 00:00:01]} c5 {[%clk 00:10:05]} 4. e3 {[%clk 00:10:03]} {[%emt
00:00:03]} Nc6 {[%clk 00:10:06]} 5. c3 {[%clk 00:09:59]} {[%emt 00:00:06]} Qb6
{[%clk 00:10:02]} {[%emt 00:00:05]} 6. Qb3 {[%clk 00:09:51]} {[%emt 00:00:10]}
c4 {[%clk 00:10:01]} {[%emt 00:00:03]} 7. Qxb6 {[%clk 00:09:26]} {[%emt
00:00:27]} axb6 {[%clk 00:10:01]} {[%emt 00:00:02]} 8. Nbd2 {[%clk 00:09:19]}
{[%emt 00:00:09]} b5 {[%clk 00:10:01]} {[%emt 00:00:02]} 9. b3 {[%clk
00:08:33]} {[%emt 00:00:48]} Bf5 {[%clk 00:09:35]} {[%emt 00:00:28]} 10. b4
{[%clk 00:08:16]} {[%emt 00:00:20]} e6 {[%clk 00:09:27]} {[%emt 00:00:09]} 11.
Be2 {[%clk 00:08:17]} {[%emt 00:00:01]} Be7 {[%clk 00:09:18]} {[%emt 00:00:11]}
12. O-O {[%clk 00:08:16]} {[%emt 00:00:03]} h6 {[%clk 00:09:06]} {[%emt
00:00:14]} 13. h3 {[%clk 00:08:14]} {[%emt 00:00:03]} O-O {[%clk 00:09:05]}
{[%emt 00:00:03]} 14. Bd1 {[%clk 00:08:15]} {[%emt 00:00:02]} Ra3 {[%clk
00:08:48]} {[%emt 00:00:20]} 15. Nb1 {[%clk 00:08:05]} {[%emt 00:00:11]} Bxb1
{[%clk 00:08:40]} {[%emt 00:00:11]} 16. Rxb1 {[%clk 00:08:06]} {[%emt
00:00:01]} Rfa8 {[%clk 00:08:23]} {[%emt 00:00:19]} 17. Rc1 {[%clk 00:07:00]}
{[%emt 00:01:09]} Ne4 {[%clk 00:08:18]} {[%emt 00:00:06]} 18. Ne5 {[%clk
00:06:49]} {[%emt 00:00:12]} Nxe5 {[%clk 00:08:00]} {[%emt 00:00:20]} 19. Bxe5
{[%clk 00:06:47]} {[%emt 00:00:04]} Nxc3 {[%clk 00:07:52]} {[%emt 00:00:10]} 20.
Bf3 {[%clk 00:06:01]} {[%emt 00:00:48]} Bxb4 {[%clk 00:07:39]} {[%emt
00:00:16]} 21. Rc2 {[%clk 00:05:21]} {[%emt 00:00:43]} Rxa2 {[%clk 00:07:33]}
{[%emt 00:00:09]} 22. Rxa2 {[%clk 00:05:20]} {[%emt 00:00:03]} Rxa2 {[%clk
00:07:33]} 23. Rc1 {[%clk 00:05:14]} {[%emt 00:00:08]} Rb2 {[%clk 00:07:22]}
{[%emt 00:00:14]} 24. Ra1 {[%clk 00:04:36]} {[%emt 00:00:40]} Rb1+ {[%clk
00:07:19]} {[%emt 00:00:05]} 25. Rxb1 {[%clk 00:04:36]} {[%emt 00:00:02]} Nxb1
{[%clk 00:07:19]} 26. e4 {[%clk 00:04:24]} {[%emt 00:00:14]} Nd2 {[%clk
00:07:12]} {[%emt 00:00:10]} 27. exd5 {[%clk 00:04:14]} {[%emt 00:00:12]} Nxf3+
{[%clk 00:07:13]} {[%emt 00:00:01]} 28. gxf3 {[%clk 00:04:14]} {[%emt
00:00:02]} exd5 {[%clk 00:07:13]} {[%emt 00:00:02]} 29. Kf1 {[%clk 00:04:08]}
{[%emt 00:00:08]} Bc3 {[%clk 00:07:11]} {[%emt 00:00:04]} 30. Bd6 {[%clk
00:04:05]} {[%emt 00:00:05]} Bxd4 {[%clk 00:07:10]} {[%emt 00:00:03]} 0-1

[Event "Turniej 30-lecia Liceum im. Józefa Bema"]
[Site "Warsaw, Poland"]
[Date "????.??.??"]
[Round "6.8"]
[White "Gronkowski, Dariusz"]
[Black "Rylski, Tadeusz"]
[Result "1-0"]
[TimeControl "0:10:02"]
[WhiteElo "1645"]
[BlackElo "1358"]

1. c4 {[%clk 00:10:02]} {[%emt 00:00:02]} Nf6 {[%clk 00:10:00]} {[%emt
00:00:04]} 2. Nc3 {[%clk 00:10:01]} {[%emt 00:00:02]} e6 {[%clk 00:09:42]}
{[%emt 00:00:20]} 3. e4 {[%clk 00:09:58]} {[%emt 00:00:04]} d6 {[%clk
00:08:44]} {[%emt 00:01:01]} 4. d4 {[%clk 00:09:49]} {[%emt 00:00:11]} Be7
{[%clk 00:08:13]} {[%emt 00:00:33]} 5. Nf3 {[%clk 00:09:45]} {[%emt 00:00:06]}
O-O {[%clk 00:08:05]} {[%emt 00:00:10]} 6. Bd3 {[%clk 00:09:41]} {[%emt
00:00:05]} b6 {[%clk 00:07:48]} {[%emt 00:00:20]} 7. O-O {[%clk 00:09:32]}
{[%emt 00:00:11]} Bb7 {[%clk 00:07:47]} {[%emt 00:00:03]} 8. Re1 {[%clk
00:09:25]} {[%emt 00:00:08]} c5 {[%clk 00:07:20]} {[%emt 00:00:29]} 9. d5
{[%clk 00:09:06]} {[%emt 00:00:22]} e5 {[%clk 00:06:38]} {[%emt 00:00:44]} 10.
Ng5 {[%clk 00:08:30]} {[%emt 00:00:37]} h6 {[%clk 00:06:27]} {[%emt 00:00:14]}
11. Nh3 {[%clk 00:08:30]} {[%emt 00:00:01]} Nh7 {[%clk 00:06:19]} {[%emt
00:00:11]} 12. f4 {[%clk 00:08:26]} {[%emt 00:00:05]} Nd7 {[%clk 00:06:02]}
{[%emt 00:00:19]} 13. f5 {[%clk 00:08:13]} {[%emt 00:00:15]} Bg5 {[%clk
00:05:50]} {[%emt 00:00:14]} 14. Be3 {[%clk 00:07:56]} {[%emt 00:00:19]} Bxe3+
{[%clk 00:05:17]} {[%emt 00:00:35]} 15. Rxe3 {[%clk 00:07:57]} {[%emt
00:00:01]} Ng5 {[%clk 00:05:17]} {[%emt 00:00:02]} 16. Nf2 {[%clk 00:07:34]}
{[%emt 00:00:23]} Kh7 {[%clk 00:04:43]} {[%emt 00:00:37]} 17. h4 {[%clk
00:07:22]} {[%emt 00:00:13]} g6 {[%clk 00:04:08]} {[%emt 00:00:39]} 18. hxg5
{[%clk 00:07:20]} {[%emt 00:00:04]} Qxg5 {[%clk 00:04:07]} {[%emt 00:00:03]} 19.
Rh3 {[%clk 00:06:44]} {[%emt 00:00:37]} Nf6 {[%clk 00:03:55]} {[%emt 00:00:15]}
20. Qe2 {[%clk 00:06:31]} {[%emt 00:00:14]} Rg8 {[%clk 00:03:41]} {[%emt
00:00:17]} 21. Qf3 {[%clk 00:05:52]} {[%emt 00:00:40]} gxf5 {[%clk 00:03:21]}
{[%emt 00:00:23]} 22. Qxf5+ {[%clk 00:05:49]} {[%emt 00:00:04]} Rg6 {[%clk
00:02:55]} {[%emt 00:00:29]} 23. Qxg5 {[%clk 00:05:29]} {[%emt 00:00:22]} Rxg5
{[%clk 00:02:55]} {[%emt 00:00:01]} 24. Rf3 {[%clk 00:05:27]} {[%emt 00:00:04]}
Rg6 {[%clk 00:02:19]} {[%emt 00:00:39]} 25. Kf1 {[%clk 00:04:38]} {[%emt
00:00:50]} Rag8 {[%clk 00:02:19]} {[%emt 00:00:02]} 26. Ke2 {[%clk 00:04:36]}
{[%emt 00:00:04]} Bc8 {[%clk 00:02:14]} {[%emt 00:00:08]} 27. Ncd1 {[%clk
00:04:06]} {[%emt 00:00:30]} R8g7 {[%clk 00:02:01]} {[%emt 00:00:17]} 28. Ne3
{[%clk 00:04:05]} {[%emt 00:00:03]} Nh5 {[%clk 00:01:52]} {[%emt 00:00:11]} 29.
Nf5 {[%clk 00:03:44]} {[%emt 00:00:23]} Bxf5 {[%clk 00:01:42]} {[%emt
00:00:12]} 30. exf5 {[%clk 00:03:43]} {[%emt 00:00:02]} Rf6 {[%clk 00:01:27]}
{[%emt 00:00:18]} 31. g4 {[%clk 00:03:42]} {[%emt 00:00:03]} Nf4+ {[%clk
00:01:22]} {[%emt 00:00:07]} 32. Kd2 {[%clk 00:03:31]} {[%emt 00:00:10]} h5
{[%clk 00:01:08]} {[%emt 00:00:19]} 33. Rh1 {[%clk 00:03:31]} {[%emt 00:00:02]}
Kh6 {[%clk 00:01:05]} {[%emt 00:00:05]} 34. Rxf4 {[%clk 00:02:56]} {[%emt
00:00:37]} 1-0

[Event "Turniej 30-lecia Liceum im. Józefa Bema"]
[Site "Warsaw, Poland"]
[Date "????.??.??"]
[Round "6.9"]
[White "Szewczak, Anna"]
[Black "Wiktorowski, Janusz"]
[Result "0-1"]
[TimeControl "0:10:02"]
[WhiteElo "2005"]
[BlackElo "1440"]

1. e4 {[%clk 00:10:03]} {[%emt 00:00:01]} e5 {[%clk 00:10:02]} {[%emt
00:00:02]} 2. Nf3 {[%clk 00:10:03]} {[%emt 00:00:02]} Nc6 {[%clk 00:10:03]}
{[%emt 00:00:01]} 3. d4 {[%clk 00:10:03]} {[%emt 00:00:02]} exd4 {[%clk
00:10:02]} {[%emt 00:00:03]} 4. Bc4 {[%clk 00:10:04]} {[%emt 00:00:02]} Nf6
{[%clk 00:09:22]} {[%emt 00:00:41]} 5. e5 {[%clk 00:10:04]} {[%emt 00:00:02]}
d5 {[%clk 00:09:22]} {[%emt 00:00:02]} 6. Bb5 {[%clk 00:09:11]} {[%emt
00:00:56]} Ne4 {[%clk 00:09:05]} {[%emt 00:00:18]} 7. Nxd4 {[%clk 00:08:56]}
{[%emt 00:00:17]} Bd7 {[%clk 00:08:31]} {[%emt 00:00:36]} 8. Be3 {[%clk
00:07:36]} {[%emt 00:01:22]} Nxe5 {[%clk 00:07:38]} {[%emt 00:00:55]} 9. Bxd7+
{[%clk 00:06:33]} {[%emt 00:01:05]} Qxd7 {[%clk 00:07:17]} {[%emt 00:00:23]} 10.
Bf4 {[%clk 00:05:41]} {[%emt 00:00:53]} Bd6 {[%clk 00:06:33]} {[%emt 00:00:46]}
11. O-O {[%clk 00:03:50]} {[%emt 00:01:53]} O-O-O {[%clk 00:06:22]} {[%emt
00:00:13]} 12. Nb3 {[%clk 00:03:22]} {[%emt 00:00:31]} c6 {[%clk 00:05:29]}
{[%emt 00:00:56]} 13. Qd4 {[%clk 00:02:16]} {[%emt 00:01:07]} Nf3+ {[%clk
00:03:27]} {[%emt 00:02:03]} 14. gxf3 {[%clk 00:02:13]} {[%emt 00:00:05]} Bxf4
{[%clk 00:03:24]} {[%emt 00:00:05]} 15. fxe4 {[%clk 00:01:04]} {[%emt
00:01:10]} Qg4+ {[%clk 00:03:24]} {[%emt 00:00:02]} 16. Kh1 {[%clk 00:01:06]}
{[%emt 00:00:01]} Qh3 {[%clk 00:03:21]} {[%emt 00:00:05]} 17. Nc3 {[%clk
00:01:03]} {[%emt 00:00:05]} Qxh2# {[%emt 00:00:03]} 0-1